lending/lending_fUSD_20241103
["ID","MTS","AMOUNT","RATE_DAILY","PERIOD"]
[341206029,1730646653447,-47587.52984206,0.00034664,2]
[341206030,1730646653457,-813110.60045444,0.00034665,2]
[341206031,1730646653467,-463.8736896,0.00034665,2]
[341206032,1730646653477,-447.09693799,0.00034666,2]
[341206033,1730646653487,-132777.29116675,0.00034669,2]
[341206034,1730646653496,-200.0,0.00034669,2]
[341206035,1730646653506,-463.8736896,0.0003467,2]
[341206036,1730646653515,-447.09693799,0.00034672,2]
[341206037,1730646653526,-2631.71987437,0.00034677,2]
[341206038,1730646653535,-5058.81626787,0.00034681,2]
[341206039,1730646653544,-3584.9868615,0.00034682,2]
[341206040,1730646653553,-200.0,0.00034682,2]
[341206041,1730646653563,-411.63724156,0.00034682,2]
[341206042,1730646653572,-1474.76725411,0.00034682,2]
[341206043,1730646653585,-19028.6319847,0.00034683,2]
[341206044,1730646653594,-513.77306359,0.00034684,2]
[341206045,1730646653603,-200.0,0.00034684,2]
[341206046,1730646653612,-1061.63903781,0.00034686,2]
[341206047,1730646653622,-318.49171134,0.00034686,2]
[341206048,1730646653632,-1645.73034026,0.00034687,2]
[341206049,1730646653641,-39833.18735003,0.00034688,2]
[341206050,1730646653652,-1061.63903781,0.00034689,2]
[341206051,1730646653661,-5708.58959541,0.0003469,2]
[341206052,1730646653671,-14430.59028114,0.00034692,2]
[341206053,1730646653680,-621.18124488,0.00034694,2]
[341206054,1730646653689,-11949.95620501,0.00034694,2]
[341206055,1730646653699,-201.0,0.000347,13]
[341206056,1730646653708,-398.0,0.000347,20]
[341206057,1730646653717,-196.0,0.000347,20]
[341206058,1730646653727,-2349.05983748,0.000347,2]
[341206059,1730646653737,-121966.59006824,0.00034703,2]
[341206060,1730646653746,-5058.81626787,0.00034709,2]
[341206061,1730646653755,-2744.24827662,0.00034713,2]
[341206062,1730646653765,-200.0,0.00034715,2]
[341206063,1730646653775,-132777.29116675,0.00034715,2]
[341206064,1730646653784,-18294.98851031,0.00034718,2]
[341206065,1730646653794,-813110.60045444,0.00034721,2]
[341206066,1730646653803,-200.0,0.00034723,2]
[341206067,1730646653813,-1712.57687862,0.00034726,2]
[341206068,1730646653822,-19028.6319847,0.00034726,2]
[341206069,1730646653835,-200.0,0.00034726,2]
[341206070,1730646653844,-2349.05983748,0.00034727,2]
[341206071,1730646653853,-14430.59028114,0.00034728,2]
[341206072,1730646653862,-200.0,0.00034729,2]
[341206073,1730646653872,-18294.98851031,0.0003473,2]
[341206074,1730646653882,-1075.49605845,0.00034732,2]
[341206075,1730646653891,-132777.29116675,0.00034732,2]
[341206076,1730646653900,-1604.77450071,0.00034733,2]
[341206077,1730646653910,-318.49171134,0.00034733,2]
[341206078,1730646653919,-621.18124488,0.00034735,2]
[341206079,1730646653928,-322.64881754,0.00034736,2]
[341206080,1730646653938,-5708.58959541,0.00034738,2]
[341206081,1730646653948,-19028.6319847,0.00034741,2]
[341206082,1730646653957,-1061.63903781,0.00034741,2]
[341206083,1730646653966,-481.43235021,0.00034741,2]
[341206084,1730646653975,-813110.60045444,0.00034742,2]
[341206085,1730646653985,-481.43235021,0.00034742,2]
[341206086,1730646653994,-3584.9868615,0.00034742,2]
[341206087,1730646654003,-47587.52984206,0.00034745,2]
[341206088,1730646654012,-1604.77450071,0.00034746,2]
[341206089,1730646654023,-463.8736896,0.00034746,2]
[341206090,1730646654032,-447.09693799,0.00034746,2]
[341206091,1730646654041,-200.0,0.00034747,2]
[341206092,1730646654050,-447.09693799,0.00034747,2]
[341206093,1730646654059,-1645.73034026,0.00034748,2]
[341206094,1730646654069,-121966.59006824,0.00034748,2]
[341206095,1730646654081,-132777.29116675,0.00034749,2]
[341206096,1730646654090,-1604.77450071,0.00034752,2]
[341206097,1730646654100,-2349.05983748,0.00034755,2]
[341206098,1730646654109,-150.0,0.00034756,7]
[341206099,1730646654119,-14430.59028114,0.00034756,2]
[341206100,1730646654128,-200.0,0.00034758,2]
[341206101,1730646654138,-121966.59006824,0.00034759,2]
[341206102,1730646654147,-411.63724156,0.00034761,2]
[341206103,1730646654156,-1075.49605845,0.00034761,2]
[341206104,1730646654166,-463.8736896,0.00034765,2]
[341206105,1730646654176,-3584.9868615,0.00034766,2]
[341206106,1730646654185,-1474.76725411,0.00034766,2]
[341206107,1730646654195,-221.21508819,0.0003477,2]
[341206108,1730646654204,-322.64881754,0.0003477,2]
[341206109,1730646654214,-200.0,0.0003477,2]
[341206110,1730646654223,-513.77306359,0.00034776,2]
[341206111,1730646654232,-1712.57687862,0.00034777,2]
[341206112,1730646654242,-322.64881754,0.00034781,2]
[341206113,1730646654251,-200.0,0.00034783,2]
[341206114,1730646654262,-1705.42395092,0.00034784,2]
[341206115,1730646654272,-5349.24833569,0.00034784,2]
[341206116,1730646654282,-1474.76725411,0.00034786,2]
[341206117,1730646654291,-351.39930534,0.00034787,2]
[341206118,1730646654300,-200.0,0.00034787,2]
[341206119,1730646654310,-1645.73034026,0.00034789,2]
[341206120,1730646654319,-2631.71987437,0.00034789,2]
[341206121,1730646654331,-47587.52984206,0.0003479,2]
[341206122,1730646654340,-150.0,0.00034793,7]
[341206123,1730646654350,-200.0,0.00034793,2]
[341206124,1730646654359,-481.43235021,0.00034793,2]
[341206125,1730646654369,-513.77306359,0.00034794,2]
[341206126,1730646654379,-200.0,0.00034795,2]
[341206127,1730646654388,-200.0,0.00034796,2]
[341206128,1730646654398,-14430.59028114,0.00034797,2]
[341206129,1730646654407,-322.64881754,0.00034798,2]
[341206130,1730646654417,-481.43235021,0.00034799,2]
[341206131,1730646654426,-813110.60045444,0.00034799,2]
[341206132,1730646654436,-2744.24827662,0.000348,2]
[341206133,1730646654445,-500.0,0.00034809,5]
[341206134,1730646654454,-500.0,0.00034809,5]
[341206135,1730646654463,-511.84542199,0.00034809,5]
[341206136,1730646654473,-50000.0,0.000349,2]
[341206137,1730646654484,-1184.044645,0.0003494,14]
[341206138,1730646654493,-1000.0,0.0003496,14]
[341206139,1730646654503,-150.0,0.0003496,7]
[341206140,1730646654513,-1388.3480981,0.00034976,2]
[341206141,1730646654522,-5417.9626537,0.00034976,2]
[341206142,1730646654532,-851.0667379,0.00034976,2]
[341206143,1730646654542,-435.18930238,0.0003498,20]
[341206144,1730646654551,-1000.0,0.0003498,14]
[341206145,1730646654561,-400.87335257,0.00035,3]
[341206146,1730646654570,-7713.34861468,0.00035,2]
[341206147,1730646654582,-870.20477802,0.00035,7]
[341206148,1730646654591,-491.0,0.00035,30]
[341206149,1730646654601,-311481.770811,0.00035,2]
[341206150,1730646654610,-388.50436094,0.00035,3]
[341206151,1730646654620,-7164.87167673,0.00035,2]
[341206152,1730646654630,-600.0,0.00035,2]
[341206153,1730646654640,-344.95,0.00035,2]
[341206154,1730646654649,-717.63,0.00035,7]
[341206155,1730646654660,-183.820917,0.00035,7]
[341206156,1730646654671,-153.7563,0.00035,7]
[341206157,1730646654680,-151.0,0.00035,7]
[341206158,1730646654689,-151.0,0.00035,7]
[341206159,1730646654698,-151.0,0.00035,7]
[341206160,1730646654708,-151.0,0.00035,7]
[341206161,1730646654717,-158.349051,0.00035,7]
[341206162,1730646654814,-164.823773,0.00035,7]
[341206163,1730646654824,-151.0,0.00035,7]
[341206164,1730646654836,-159.624344,0.00035,7]
[341206165,1730646654846,-159.23833,0.00035,7]
[341206166,1730646654855,-151.0,0.00035,7]
[341206167,1730646654864,-159.352177,0.00035,7]
[341206168,1730646654874,-161.702125,0.00035,7]
[341206169,1730646654883,-151.0,0.00035,3]
[341206170,1730646654893,-155.414261,0.00035,7]
[341206171,1730646654902,-151.0,0.00035,7]
[341206172,1730646654912,-298.949021,0.00035,7]
[341206173,1730646654921,-151.0,0.00035,7]
[341206174,1730646654930,-151.0,0.00035,7]
[341206175,1730646654940,-151.0,0.00035,7]
[341206176,1730646654949,-839.0,0.00035,24]
[341206177,1730646654959,-201.784439,0.00035,7]
[341206178,1730646654970,-151.0,0.00035,7]
[341206179,1730646654980,-151.0,0.00035,7]
[341206180,1730646654989,-154.262175,0.00035,7]
[341206181,1730646654998,-151.0,0.00035,7]
[341206182,1730646655007,-151.0,0.00035,7]
[341206183,1730646655016,-296.358652,0.00035,7]
[341206184,1730646655026,-151.0,0.00035,7]
[341206185,1730646655035,-151.0,0.00035,7]
[341206186,1730646655044,-151.0,0.00035,7]
[341206187,1730646655054,-153.708364,0.00035,7]
[341206188,1730646655063,-155.015638,0.00035,7]
[341206189,1730646655073,-151.0,0.00035,7]
[341206190,1730646655084,-151.0,0.00035,7]
[341206191,1730646655093,-165.962599,0.00035,7]
[341206192,1730646655103,-151.0,0.00035,7]
[341206193,1730646655111,-379.088975,0.00035,7]
[341206194,1730646655120,-379.088975,0.00035,7]
[341206195,1730646655129,-151.0,0.00035,7]
[341206196,1730646655138,-169.781827,0.00035,7]
[341206197,1730646655147,-151.0,0.00035,7]
[341206198,1730646655156,-2306.22203,0.00035,2]
[341206199,1730646655165,-151.0,0.00035,7]
[341206200,1730646655175,-151.0,0.00035,7]
[341206201,1730646655184,-151.0,0.00035,7]
[341206202,1730646655193,-1000.0,0.00035,14]
[341206203,1730646655202,-151.0,0.00035,7]
[341206204,1730646655211,-175.831982,0.00035,7]
[341206205,1730646655220,-175.831982,0.00035,7]
[341206206,1730646655230,-151.0,0.00035,7]
[341206207,1730646655239,-157.845849,0.00035,7]
[341206208,1730646655249,-180.117132,0.00035,7]
[341206209,1730646655261,-151.0,0.00035,7]
[341206210,1730646655271,-368.413794,0.00035,7]
[341206211,1730646655282,-368.413794,0.00035,7]
[341206212,1730646655291,-151.0,0.00035,7]
[341206213,1730646655300,-151.0,0.00035,7]
[341206214,1730646655309,-151.0,0.00035,7]
[341206215,1730646655319,-155.519655,0.00035,7]
[341206216,1730646655331,-159.369605,0.00035,7]
[341206217,1730646655345,-161.307616,0.00035,7]
[341206218,1730646655354,-2000.0,0.00035,30]
[341206219,1730646655364,-231.25561102,0.00035,2]
[341206220,1730646655374,-2393.1788001,0.00035,2]
[341206221,1730646655383,-504.51023178,0.00035,2]
[341206222,1730646655392,-4991.9999991,0.00035,7]
[341206223,1730646655402,-1019.0,0.00035014,120]
[341206224,1730646655411,-7049.86454047,0.000351,30]
[341206225,1730646655420,-23410.73958869,0.00035121,2]
[341206226,1730646655430,-150.0,0.00035127,7]
[341206227,1730646655439,-150.0,0.00035164,7]
[341206228,1730646655448,-500.0,0.00035342,3]
[341206229,1730646655458,-576.41,0.00035361,2]
[341206230,1730646655467,-717.63,0.000354,7]
[341206231,1730646655477,-150.0,0.00035462,7]
[341206232,1730646655486,-839.0,0.000355,24]
[341206233,1730646655495,-150.0,0.00035573,7]
[341206234,1730646655505,-150.0,0.00035573,7]
[341206235,1730646655515,-1000.0,0.00035616,2]
[341206236,1730646655524,-1043.76883259,0.00035616,120]
[341206237,1730646655536,-2038.28439179,0.00035616,120]
[341206238,1730646655545,-500.0,0.00035616,7]
[341206239,1730646655556,-500.0,0.00035616,7]
[341206240,1730646655565,-498.0605331,0.00035616,7]
[341206241,1730646655575,-199.16147834,0.00035616,7]
[341206242,1730646655592,-153.0,0.00035616,2]
[341206243,1730646655602,-153.0,0.00035616,2]
[341206244,1730646655611,-153.0,0.00035616,2]
[341206245,1730646655620,-153.0,0.00035616,2]
[341206246,1730646655629,-153.0,0.00035616,2]
[341206247,1730646655639,-153.0,0.00035616,2]
[341206248,1730646655648,-153.0,0.00035616,2]
[341206249,1730646655657,-153.0,0.00035616,2]
[341206250,1730646655666,-153.0,0.00035616,2]
[341206251,1730646655675,-153.0,0.00035616,2]
[341206252,1730646655684,-153.0,0.00035616,2]
[341206253,1730646655694,-153.0,0.00035616,2]
[341206254,1730646655703,-153.0,0.00035616,2]
[341206255,1730646655712,-153.0,0.00035616,2]
[341206256,1730646655721,-153.0,0.00035616,2]
[341206257,1730646655731,-153.0,0.00035616,2]
[341206258,1730646655739,-153.0,0.00035616,2]
[341206259,1730646655748,-153.0,0.00035616,2]
[341206260,1730646655758,-153.0,0.00035616,2]
[341206261,1730646655767,-153.0,0.00035616,2]
[341206262,1730646655776,-153.0,0.00035616,2]
[341206263,1730646655785,-153.0,0.00035616,2]
[341206264,1730646655794,-153.0,0.00035616,2]
[341206265,1730646655803,-153.0,0.00035616,2]
[341206266,1730646655812,-153.0,0.00035616,2]
[341206267,1730646655821,-153.0,0.00035616,2]
[341206268,1730646655834,-300.0,0.00035616,2]
[341206269,1730646655843,-426.09549888,0.00035752,60]
[341206270,1730646655853,-150.0,0.00035796,7]
[341206271,1730646655862,-152.0,0.000358,7]
[341206272,1730646655871,-717.63,0.000358,30]
[341206273,1730646655880,-5012.57555,0.00035801,30]
[341206274,1730646655890,-2751.14,0.000359,4]
[341206275,1730646655899,-150.0,0.00035982,7]
[341206276,1730646655908,-904.07618519,0.00036,2]
[341206277,1730646655917,-631.65308495,0.00036,2]
[341206278,1730646655926,-135413.23300048,0.00036,120]
[341206279,1730646655935,-1369.6,0.00036,14]
[341206280,1730646655944,-839.0,0.00036,25]
[341206281,1730646655953,-218.0,0.00036,2]
[341206282,1730646655962,-150.0,0.00036131,7]
[341206283,1730646655971,-1000.0,0.00036179,5]
[341206284,1730646655980,-501.37311369,0.00036179,5]
[341206285,1730646655989,-150.0,0.00036187,7]
[341206286,1730646655998,-150.0,0.00036391,7]
[341206287,1730646656007,-717.63,0.000364,30]
[341206288,1730646656016,-594.1201965,0.00036421,30]
[341206289,1730646656025,-246.62307034,0.00036432,2]
[341206290,1730646656033,-150.0,0.00036465,7]
[341206291,1730646656042,-21538.53875179,0.000365,2]
[341206292,1730646656052,-1369.6,0.000365,14]
[341206293,1730646656061,-201.0,0.000365,17]
[341206294,1730646656070,-839.0,0.000365,25]
[341206295,1730646656080,-1143.52295315,0.000367,2]
[341206296,1730646656089,-172201.62414054,0.000368,2]
[341206297,1730646656098,-77096.70538367,0.000368,2]
[341206298,1730646656107,-151.0,0.000368,7]
[341206299,1730646656116,-156.252722,0.000368,7]
[341206300,1730646656125,-151.0,0.000368,3]
[341206301,1730646656135,-151.0,0.000368,7]
[341206302,1730646656144,-174.422494,0.000368,7]
[341206303,1730646656154,-398.0,0.000368,22]
[341206304,1730646656163,-162.18855334,0.000368,7]
[341206305,1730646656172,-256.10248818,0.000368,7]
[341206306,1730646656181,-279.54481005,0.000368,7]
[341206307,1730646656190,-151.0,0.000368,7]
[341206308,1730646656199,-151.0,0.000368,7]
[341206309,1730646656209,-159.16671699,0.000368,7]
[341206310,1730646656218,-156.78066849,0.000368,7]
[341206311,1730646656227,-151.0,0.000368,7]
[341206312,1730646656236,-151.0,0.000368,7]
[341206313,1730646656245,-151.0,0.000368,7]
[341206314,1730646656254,-379.088975,0.000368,7]
[341206315,1730646656264,-379.088975,0.000368,7]
[341206316,1730646656275,-196.0,0.000368,22]
[341206317,1730646656285,-151.0,0.000368,7]
[341206318,1730646656294,-151.0,0.000368,7]
[341206319,1730646656303,-207.593008,0.000368,7]
[341206320,1730646656313,-175.831982,0.000368,7]
[341206321,1730646656322,-175.831982,0.000368,7]
[341206322,1730646656334,-151.0,0.000368,7]
[341206323,1730646656343,-151.0,0.000368,7]
[341206324,1730646656354,-368.413794,0.000368,7]
[341206325,1730646656364,-368.413794,0.000368,7]
[341206326,1730646656373,-151.0,0.000368,7]
[341206327,1730646656382,-151.0,0.000368,7]
[341206328,1730646656391,-7339.42509484,0.000369,2]
[341206329,1730646656399,-204.58054288,0.000369,7]
[341206330,1730646656408,-2176.71900932,0.000369,2]
[341206331,1730646656417,-2696.0,0.00036941,6]
[341206332,1730646656426,-2696.0,0.00036943,6]
[341206333,1730646656435,-154.38914469,0.00036999,7]
[341206334,1730646656444,-5000.0,0.00037,2]
[341206335,1730646656453,-4850.16404578,0.00037,120]
[341206336,1730646656463,-10081.53012375,0.00037,2]
[341206337,1730646656472,-29012.270922,0.00037,7]
[341206338,1730646656481,-72278.15197692,0.00037,30]
[341206339,1730646656491,-650.0,0.00037,2]
[341206340,1730646656500,-1369.6,0.00037,14]
[341206341,1730646656509,-839.0,0.00037,26]
[341206342,1730646656519,-782.08,0.00037035,2]
[341206343,1730646656529,-153.223,0.0003706,120]
[341206344,1730646656539,-729.8,0.000371,30]
[341206345,1730646656548,-551.63925,0.00037161,2]
[341206346,1730646656558,-165.49549177,0.000372,103]
[341206347,1730646656567,-165.49549177,0.000372,103]
[341206348,1730646656576,-165.49549177,0.000372,103]
[341206349,1730646656586,-165.49549177,0.000372,103]
[341206350,1730646656595,-152.0,0.0003722,8]
[341206351,1730646656605,-1369.6,0.000373,14]
[341206352,1730646656614,-160.2381907,0.00037434,2]
[341206353,1730646656624,-11075.29282546,0.00037473,3]
[341206354,1730646656633,-100000.0,0.000375,2]
[341206355,1730646656643,-1384.24,0.000375,14]
[341206356,1730646656652,-2675.61,0.000375,14]
[341206357,1730646656662,-1197.316452,0.000375,26]
[341206358,1730646656672,-1117.7442031,0.00037508,2]
[341206359,1730646656680,-4361.9437788,0.00037508,2]
[341206360,1730646656690,-781.7382677,0.00037508,2]
[341206361,1730646656699,-500.0,0.00037534,2]
[341206362,1730646656710,-500.0,0.00037534,2]
[341206363,1730646656719,-500.0,0.00037534,2]
[341206364,1730646656728,-501.04959659,0.00037534,2]
[341206365,1730646656737,-501.32915106,0.00037534,2]
[341206366,1730646656746,-518.15292724,0.00037534,2]
[341206367,1730646656757,-512.95996151,0.00037534,2]
[341206368,1730646656767,-505.04711381,0.00037534,2]
[341206369,1730646656776,-311.70780899,0.00037534,2]
[341206370,1730646656786,-503.01202569,0.00037534,2]
[341206371,1730646656795,-533.79159131,0.00037534,2]
[341206372,1730646656805,-503.14316066,0.00037534,2]
[341206373,1730646656814,-501.41901625,0.00037534,2]
[341206374,1730646656823,-512.02621436,0.00037534,2]
[341206375,1730646656833,-522.89907088,0.00037534,2]
[341206376,1730646656843,-501.81122055,0.00037534,2]
[341206377,1730646656852,-501.56042988,0.00037534,2]
[341206378,1730646656861,-505.94884735,0.00037534,2]
[341206379,1730646656871,-576.20263325,0.00037534,2]
[341206380,1730646656881,-512.9891167,0.00037534,2]
[341206381,1730646656890,-509.90528856,0.00037534,2]
[341206382,1730646656899,-500.38232347,0.00037534,2]
[341206383,1730646656909,-507.01420523,0.00037534,2]
[341206384,1730646656918,-501.1384859,0.00037534,2]
[341206385,1730646656928,-500.0,0.00037534,2]
[341206386,1730646656937,-500.0,0.00037534,2]
[341206387,1730646656946,-534.55005913,0.00037534,2]
[341206388,1730646656955,-519.40808302,0.00037534,2]
[341206389,1730646656965,-191.84159496,0.00037534,2]
[341206390,1730646656974,-347.13195254,0.00037534,2]
[341206391,1730646656983,-500.24465683,0.00037534,2]
[341206392,1730646656993,-500.0,0.00037534,2]
[341206393,1730646657002,-627.52199325,0.00037534,2]
[341206394,1730646657011,-509.6098887,0.00037534,2]
[341206395,1730646657020,-511.9329434,0.00037534,2]
[341206396,1730646657030,-500.0,0.00037534,2]
[341206397,1730646657039,-500.0,0.00037534,2]
[341206398,1730646657048,-504.23585749,0.00037534,2]
[341206399,1730646657057,-526.77301401,0.00037534,2]
[341206400,1730646657066,-500.0,0.00037534,2]
[341206401,1730646657075,-521.96430733,0.00037534,2]
[341206402,1730646657087,-519.33835701,0.00037534,2]
[341206403,1730646657096,-520.58130163,0.00037534,2]
[341206404,1730646657105,-509.6923099,0.00037534,2]
[341206405,1730646657114,-521.4133682,0.00037534,2]
[341206406,1730646657123,-508.93241637,0.00037534,2]
[341206407,1730646657226,-500.0,0.00037534,2]
[341206408,1730646657236,-171.375597,0.00037534,2]
[341206409,1730646657247,-156.116056,0.00037534,2]
[341206410,1730646657257,-500.66542271,0.00037534,2]
[341206411,1730646657270,-503.07670918,0.00037534,2]
[341206412,1730646657279,-354.70914057,0.00037534,2]
[341206413,1730646657288,-500.0,0.00037534,2]
[341206414,1730646657297,-500.0,0.00037534,2]
[341206415,1730646657306,-500.0,0.00037534,2]
[341206416,1730646657315,-512.81038595,0.00037534,2]
[341206417,1730646657324,-507.26697244,0.00037534,2]
[341206418,1730646657335,-500.0,0.00037534,2]
[341206419,1730646657344,-530.96974285,0.00037534,2]
[341206420,1730646657354,-511.14868145,0.00037534,2]
[341206421,1730646657363,-312.3737389,0.00037534,2]
[341206422,1730646657371,-512.82609421,0.00037534,2]
[341206423,1730646657381,-635.200437,0.00037534,2]
[341206424,1730646657390,-595.08140971,0.00037534,2]
[341206425,1730646657400,-512.65658884,0.00037534,2]
[341206426,1730646657411,-207.48339569,0.00037534,2]
[341206427,1730646657421,-531.92124484,0.00037534,2]
[341206428,1730646657432,-509.52824881,0.00037534,2]
[341206429,1730646657442,-515.7287054,0.00037534,2]
[341206430,1730646657453,-525.1902821,0.00037534,2]
[341206431,1730646657463,-500.0,0.00037534,2]
[341206432,1730646657473,-500.0,0.00037534,2]
[341206433,1730646657482,-500.0,0.00037534,2]
[341206434,1730646657491,-490.76159236,0.00037534,2]
[341206435,1730646657500,-506.81993859,0.00037534,2]
[341206436,1730646657508,-522.68428285,0.00037534,2]
[341206437,1730646657518,-504.22151439,0.00037534,2]
[341206438,1730646657527,-504.44679664,0.00037534,2]
[341206439,1730646657538,-500.0,0.00037534,2]
[341206440,1730646657547,-500.0,0.00037534,2]
[341206441,1730646657556,-525.29895428,0.00037534,2]
[341206442,1730646657566,-500.0,0.00037534,2]
[341206443,1730646657575,-500.0,0.00037534,2]
[341206444,1730646657586,-1488.5,0.00037534,2]
[341206445,1730646657596,-330.12938682,0.00037534,2]
[341206446,1730646657605,-500.0,0.00037534,2]
[341206447,1730646657615,-502.10976351,0.00037534,2]
[341206448,1730646657624,-500.78541813,0.00037534,2]
[341206449,1730646657634,-956.1,0.00037534,7]
[341206450,1730646657644,-500.0,0.00037534,2]
[341206451,1730646657654,-539.6610394,0.00037534,2]
[341206452,1730646657664,-500.0,0.00037534,2]
[341206453,1730646657674,-500.0,0.00037534,2]
[341206454,1730646657683,-502.0767448,0.00037534,2]
[341206455,1730646657693,-500.0,0.00037534,2]
[341206456,1730646657702,-157.88157053,0.00037534,2]
[341206457,1730646657711,-500.0,0.00037534,2]
[341206458,1730646657720,-536.66527614,0.00037534,2]
[341206459,1730646657729,-531.66120424,0.00037534,2]
[341206460,1730646657738,-500.0,0.00037534,2]
[341206461,1730646657748,-500.0,0.00037534,2]
[341206462,1730646657759,-500.0,0.00037534,2]
[341206463,1730646657768,-500.0,0.00037534,2]
[341206464,1730646657777,-500.0,0.00037534,2]
[341206465,1730646657786,-500.0,0.00037534,2]
[341206466,1730646657795,-500.0,0.00037534,2]
[341206467,1730646657804,-500.0,0.00037534,2]
[341206468,1730646657813,-523.98719911,0.00037534,2]
[341206469,1730646657823,-500.0,0.00037534,2]
[341206470,1730646657835,-500.0,0.00037534,2]
[341206471,1730646657843,-517.51918713,0.00037534,2]
[341206472,1730646657852,-500.0,0.00037534,2]
[341206473,1730646657861,-397.69055155,0.00037534,2]
[341206474,1730646657871,-534.29431996,0.00037534,2]
[341206475,1730646657880,-517.04772413,0.00037534,2]
[341206476,1730646657889,-500.0,0.00037534,2]
[341206477,1730646657898,-509.98590576,0.00037534,2]
[341206478,1730646657908,-500.0,0.00037534,2]
[341206479,1730646657917,-503.83686706,0.00037534,2]
[341206480,1730646657926,-500.0,0.00037534,2]
[341206481,1730646657936,-500.0,0.00037534,2]
[341206482,1730646657946,-503.75619638,0.00037534,2]
[341206483,1730646657956,-503.56448925,0.00037534,2]
[341206484,1730646657966,-500.0,0.00037534,2]
[341206485,1730646657976,-391.34048333,0.00037534,2]
[341206486,1730646657985,-500.0,0.00037534,2]
[341206487,1730646657994,-500.0,0.00037534,2]
[341206488,1730646658003,-535.19210736,0.00037534,2]
[341206489,1730646658013,-500.0,0.00037534,2]
[341206490,1730646658022,-500.0,0.00037534,2]
[341206491,1730646658031,-906.58,0.00037534,2]
[341206492,1730646658040,-500.0,0.00037534,2]
[341206493,1730646658050,-500.0,0.00037534,2]
[341206494,1730646658061,-500.0,0.00037534,2]
[341206495,1730646658072,-500.0,0.00037534,2]
[341206496,1730646658082,-500.0,0.00037534,2]
[341206497,1730646658091,-522.82969827,0.00037534,2]
[341206498,1730646658101,-500.0,0.00037534,2]
[341206499,1730646658110,-592.09036748,0.00037534,2]
[341206500,1730646658120,-521.29927642,0.00037534,2]
[341206501,1730646658131,-500.0,0.00037534,2]
[341206502,1730646658142,-500.0,0.00037534,2]
[341206503,1730646658153,-500.0,0.00037534,2]
[341206504,1730646658162,-544.36833657,0.00037534,2]
[341206505,1730646658171,-500.0,0.00037534,2]
[341206506,1730646658181,-500.0,0.00037534,2]
[341206507,1730646658190,-500.0,0.00037534,2]
[341206508,1730646658199,-500.0,0.00037534,2]
[341206509,1730646658208,-525.34803235,0.00037534,2]
[341206510,1730646658218,-500.0,0.00037534,2]
[341206511,1730646658228,-541.47369737,0.00037534,2]
[341206512,1730646658240,-500.0,0.00037534,2]
[341206513,1730646658250,-500.0,0.00037534,2]
[341206514,1730646658259,-593.03051236,0.00037534,2]
[341206515,1730646658275,-500.0,0.00037534,2]
[341206516,1730646658284,-500.0,0.00037534,2]
[341206517,1730646658293,-500.0,0.00037534,2]
[341206518,1730646658302,-510.90127487,0.00037534,2]
[341206519,1730646658313,-500.0,0.00037534,2]
[341206520,1730646658326,-500.0,0.00037534,2]
[341206521,1730646658343,-500.0,0.00037534,2]
[341206522,1730646658358,-500.0,0.00037534,2]
[341206523,1730646658369,-500.0,0.00037534,2]
[341206524,1730646658381,-500.0,0.00037534,2]
[341206525,1730646658394,-504.31768102,0.00037534,2]
[341206526,1730646658407,-500.0,0.00037534,2]
[341206527,1730646658421,-500.0,0.00037534,2]
[341206528,1730646658434,-500.0,0.00037534,2]